[Event "Late-Titled-Tuesday-Blitz-October-10-2023"]
[Site "Chess.com"]
[Date "2023.10.10"]
[Round "5"]
[White "GHANDEEVAM2003"]
[Black "MMSANCHEZ"]
[Result "1-0"]
[WhiteElo "3046"]
[BlackElo "2755"]
[TimeControl "180+1"]
[EndTime "14:50:11 PDT"]
[Termination "GHANDEEVAM2003 won by resignation"]

1. Nf3 {[%clk 0:03:00.9]} 1... d5 {[%clk 0:02:58]} 2. c4 {[%clk 0:03:01.8]} 2...
e6 {[%clk 0:02:55.1]} 3. b3 {[%clk 0:03:00.3]} 3... Nf6 {[%clk 0:02:54.1]} 4.
Bb2 {[%clk 0:03:00.4]} 4... Be7 {[%clk 0:02:52.8]} 5. g3 {[%clk 0:03:00.4]} 5...
O-O {[%clk 0:02:53.2]} 6. Bg2 {[%clk 0:03:00.9]} 6... a5 {[%clk 0:02:52.2]} 7.
Nc3 {[%clk 0:02:58.5]} 7... c6 {[%clk 0:02:51.9]} 8. O-O {[%clk 0:02:57.8]} 8...
Nbd7 {[%clk 0:02:49.5]} 9. d4 {[%clk 0:02:56.6]} 9... Ne4 {[%clk 0:02:42.3]} 10.
Nxe4 {[%clk 0:02:51.3]} 10... dxe4 {[%clk 0:02:43.2]} 11. Ne1 {[%clk 0:02:48.4]}
11... f5 {[%clk 0:02:42.8]} 12. f3 {[%clk 0:02:48.4]} 12... exf3 {[%clk
0:02:41.8]} 13. Nxf3 {[%clk 0:02:47.5]} 13... Bf6 {[%clk 0:02:41.7]} 14. Qc2
{[%clk 0:02:46.1]} 14... c5 {[%clk 0:02:31.2]} 15. Rad1 {[%clk 0:02:38.8]} 15...
cxd4 {[%clk 0:02:29]} 16. Nxd4 {[%clk 0:02:39.7]} 16... Qb6 {[%clk 0:02:24.7]}
17. Kh1 {[%clk 0:02:38.7]} 17... Nc5 {[%clk 0:02:18.7]} 18. Nb5 {[%clk 0:02:39]}
18... Be7 {[%clk 0:01:46.8]} 19. Bd4 {[%clk 0:02:19.7]} 19... Rd8 {[%clk
0:01:37.3]} 20. e4 {[%clk 0:02:07.8]} 20... Bd7 {[%clk 0:01:30.7]} 21. exf5
{[%clk 0:02:07.3]} 21... Bxb5 {[%clk 0:01:30.9]} 22. cxb5 {[%clk 0:02:06.6]}
22... Qxb5 {[%clk 0:01:21.4]} 23. fxe6 {[%clk 0:01:59.7]} 23... Nxe6 {[%clk
0:01:18.5]} 24. Bb2 {[%clk 0:01:59.4]} 24... Rac8 {[%clk 0:01:07.9]} 25. Qe4
{[%clk 0:01:57.5]} 25... Qb6 {[%clk 0:00:21.2]} 26. Bh3 {[%clk 0:01:56.7]} 26...
Rxd1 {[%clk 0:00:14.6]} 27. Qxe6+ {[%clk 0:01:55.9]} 1-0

[Event "Late-Titled-Tuesday-Blitz-October-10-2023"]
[Site "Chess.com"]
[Date "2023.10.10"]
[Round "5"]
[White "sergeikim"]
[Black "maximnovik"]
[Result "0-1"]
[WhiteElo "2587"]
[BlackElo "2467"]
[TimeControl "180+1"]
[EndTime "14:50:18 PDT"]
[Termination "maximnovik won by resignation"]

1. d4 {[%clk 0:01:30]} 1... Nf6 {[%clk 0:02:59.5]} 2. c4 {[%clk 0:01:30]} 2...
e6 {[%clk 0:02:59.5]} 3. Nc3 {[%clk 0:01:30.1]} 3... Bb4 {[%clk 0:02:59.4]} 4.
Qc2 {[%clk 0:01:30.1]} 4... c5 {[%clk 0:02:59.1]} 5. dxc5 {[%clk 0:01:29.4]}
5... Bxc5 {[%clk 0:02:59.3]} 6. Nf3 {[%clk 0:01:29.4]} 6... a6 {[%clk
0:02:59.2]} 7. e3 {[%clk 0:01:28.8]} 7... b6 {[%clk 0:02:58.3]} 8. Bd3 {[%clk
0:01:28.7]} 8... Bb7 {[%clk 0:02:58.2]} 9. O-O {[%clk 0:01:28.4]} 9... Be7
{[%clk 0:02:57.7]} 10. Ne4 {[%clk 0:01:25.5]} 10... d6 {[%clk 0:02:57]} 11. b3
{[%clk 0:01:23.8]} 11... Nbd7 {[%clk 0:02:56.8]} 12. Bb2 {[%clk 0:01:23.8]}
12... Qc7 {[%clk 0:02:55.8]} 13. Rac1 {[%clk 0:01:21.5]} 13... Nxe4 {[%clk
0:02:50]} 14. Bxe4 {[%clk 0:01:21.1]} 14... Nf6 {[%clk 0:02:49.4]} 15. Bxb7
{[%clk 0:01:19.2]} 15... Qxb7 {[%clk 0:02:49.2]} 16. Rfe1 {[%clk 0:01:06.5]}
16... O-O {[%clk 0:02:48.2]} 17. e4 {[%clk 0:01:06.7]} 17... b5 {[%clk
0:02:42.6]} 18. e5 {[%clk 0:01:04.6]} 18... dxe5 {[%clk 0:02:42.6]} 19. Nxe5
{[%clk 0:01:04]} 19... bxc4 {[%clk 0:02:42.5]} 20. Qxc4 {[%clk 0:01:02.5]} 20...
Rac8 {[%clk 0:02:37]} 21. Nc6 {[%clk 0:00:45.7]} 21... Nd5 {[%clk 0:02:36.6]}
22. Nxe7+ {[%clk 0:00:41.4]} 22... Nxe7 {[%clk 0:02:36.4]} 23. Qg4 {[%clk
0:00:40.9]} 23... Nf5 {[%clk 0:02:25]} 24. Red1 {[%clk 0:00:29.7]} 24... Rxc1
{[%clk 0:02:19.7]} 25. Rxc1 {[%clk 0:00:25.1]} 25... Rd8 {[%clk 0:02:19.2]} 26.
Qf4 {[%clk 0:00:22.2]} 26... Qd5 {[%clk 0:02:14.4]} 27. h3 {[%clk 0:00:20.4]}
27... f6 {[%clk 0:02:11.6]} 28. Kh2 {[%clk 0:00:17.4]} 28... h5 {[%clk
0:02:08.9]} 29. Rc7 {[%clk 0:00:16.1]} 29... h4 {[%clk 0:02:01]} 30. Qg4 {[%clk
0:00:14.8]} 30... Qd6+ {[%clk 0:01:59.8]} 0-1

[Event "Late-Titled-Tuesday-Blitz-October-10-2023"]
[Site "Chess.com"]
[Date "2023.10.10"]
[Round "5"]
[White "DanielNaroditsky"]
[Black "Alexander_Donchenko"]
[Result "1-0"]
[WhiteElo "3177"]
[BlackElo "2876"]
[TimeControl "180+1"]
[EndTime "14:50:23 PDT"]
[Termination "DanielNaroditsky won by checkmate"]

1. e4 {[%clk 0:03:00.2]} 1... c6 {[%clk 0:03:00.1]} 2. d4 {[%clk 0:02:48.1]}
2... d5 {[%clk 0:03:01]} 3. f3 {[%clk 0:02:48.7]} 3... e6 {[%clk 0:02:56]} 4.
Nc3 {[%clk 0:02:47.2]} 4... Bb4 {[%clk 0:02:56.5]} 5. a3 {[%clk 0:02:46.8]} 5...
Bxc3+ {[%clk 0:02:55.8]} 6. bxc3 {[%clk 0:02:47.7]} 6... dxe4 {[%clk 0:02:56.2]}
7. Nh3 {[%clk 0:02:47.6]} 7... Nf6 {[%clk 0:02:55.4]} 8. fxe4 {[%clk 0:02:42.9]}
8... e5 {[%clk 0:02:49]} 9. Nf2 {[%clk 0:02:42.4]} 9... O-O {[%clk 0:02:46.2]}
10. Bd3 {[%clk 0:02:41]} 10... Nbd7 {[%clk 0:02:41.6]} 11. O-O {[%clk
0:02:40.9]} 11... Re8 {[%clk 0:02:37.6]} 12. Qf3 {[%clk 0:02:38.1]} 12... Qa5
{[%clk 0:02:33.8]} 13. Ng4 {[%clk 0:02:06.1]} 13... Qxc3 {[%clk 0:02:22.3]} 14.
Bg5 {[%clk 0:01:54.4]} 14... Qxd4+ {[%clk 0:02:19.4]} 15. Kh1 {[%clk 0:01:54.5]}
15... Qd6 {[%clk 0:02:09.2]} 16. Bc4 {[%clk 0:01:50.7]} 16... Qd4 {[%clk
0:01:39.4]} 17. Bxf7+ {[%clk 0:00:59.5]} 17... Kxf7 {[%clk 0:01:38.7]} 18. Bxf6
{[%clk 0:01:00]} 18... gxf6 {[%clk 0:01:24.7]} 19. Rad1 {[%clk 0:00:54.6]} 19...
Qc4 {[%clk 0:00:46.7]} 20. Rxd7+ {[%clk 0:00:51.1]} 20... Bxd7 {[%clk
0:00:44.9]} 21. Qxf6+ {[%clk 0:00:51.3]} 21... Kg8 {[%clk 0:00:44.5]} 22. Nh6#
{[%clk 0:00:52.2]} 1-0

[Event "Late-Titled-Tuesday-Blitz-October-10-2023"]
[Site "Chess.com"]
[Date "2023.10.10"]
[Round "5"]
[White "blueryder"]
[Black "NovikovaGalina"]
[Result "0-1"]
[WhiteElo "2170"]
[BlackElo "2415"]
[TimeControl "180+1"]
[EndTime "14:50:31 PDT"]
[Termination "NovikovaGalina won by checkmate"]

1. e4 {[%clk 0:03:00.9]} 1... e6 {[%clk 0:02:59.5]} 2. Nf3 {[%clk 0:02:57.9]}
2... d5 {[%clk 0:03:00.4]} 3. e5 {[%clk 0:02:58]} 3... Bd7 {[%clk 0:03:00.2]} 4.
c3 {[%clk 0:02:49.1]} 4... Nh6 {[%clk 0:02:58.4]} 5. d4 {[%clk 0:02:48.6]} 5...
Nf5 {[%clk 0:02:57.9]} 6. b4 {[%clk 0:02:44.7]} 6... a5 {[%clk 0:02:56.1]} 7. b5
{[%clk 0:02:40.3]} 7... c5 {[%clk 0:02:52.6]} 8. bxc6 {[%clk 0:02:39.7]} 8...
bxc6 {[%clk 0:02:49.9]} 9. Bd3 {[%clk 0:02:34.2]} 9... Nh4 {[%clk 0:02:49.1]}
10. Nxh4 {[%clk 0:02:30]} 10... Qxh4 {[%clk 0:02:50]} 11. Nd2 {[%clk 0:02:28.3]}
11... c5 {[%clk 0:02:40.4]} 12. Nf3 {[%clk 0:02:27.9]} 12... Qh5 {[%clk
0:02:33.7]} 13. O-O {[%clk 0:02:26.2]} 13... Be7 {[%clk 0:02:33.2]} 14. c4
{[%clk 0:02:20.5]} 14... cxd4 {[%clk 0:02:25.6]} 15. cxd5 {[%clk 0:02:20.3]}
15... exd5 {[%clk 0:02:24.1]} 16. Bb2 {[%clk 0:02:12.5]} 16... Nc6 {[%clk
0:02:19.1]} 17. Be2 {[%clk 0:02:00.4]} 17... O-O {[%clk 0:02:14.3]} 18. Nxd4
{[%clk 0:01:55.9]} 18... Qg6 {[%clk 0:02:12.3]} 19. f4 {[%clk 0:01:44.5]} 19...
Bc5 {[%clk 0:02:06.5]} 20. Kh1 {[%clk 0:01:40.4]} 20... Rab8 {[%clk 0:02:00.7]}
21. Bc3 {[%clk 0:01:35.8]} 21... Qe4 {[%clk 0:01:52]} 22. Bf3 {[%clk 0:01:30.2]}
22... Qe3 {[%clk 0:01:42.9]} 23. Rc1 {[%clk 0:01:21]} 23... Nxd4 {[%clk
0:01:40.3]} 24. Bxd4 {[%clk 0:01:21.3]} 24... Bxd4 {[%clk 0:01:41.2]} 25. Re1
{[%clk 0:01:18.2]} 25... Qxf4 {[%clk 0:01:39.2]} 26. Bxd5 {[%clk 0:01:08.6]}
26... Bg4 {[%clk 0:01:36.9]} 27. Qd3 {[%clk 0:00:58.6]} 27... Bxe5 {[%clk
0:01:30.6]} 28. g3 {[%clk 0:00:53.6]} 28... Qd4 {[%clk 0:01:26.3]} 29. Qxd4
{[%clk 0:00:36.1]} 29... Bxd4 {[%clk 0:01:27.2]} 30. Re4 {[%clk 0:00:32.1]}
30... Bf3# {[%clk 0:01:26.5]} 0-1

[Event "Late-Titled-Tuesday-Blitz-October-10-2023"]
[Site "Chess.com"]
[Date "2023.10.10"]
[Round "5"]
[White "Ramosha"]
[Black "Cheer_Down"]
[Result "1-0"]
[WhiteElo "2622"]
[BlackElo "2457"]
[TimeControl "180+1"]
[EndTime "14:50:33 PDT"]
[Termination "Ramosha won by resignation"]

1. e4 {[%clk 0:02:49.5]} 1... c5 {[%clk 0:02:59.4]} 2. Nf3 {[%clk 0:02:47.7]}
2... d6 {[%clk 0:02:59.5]} 3. d4 {[%clk 0:02:44.8]} 3... cxd4 {[%clk 0:03:00.4]}
4. Nxd4 {[%clk 0:02:45.7]} 4... Nf6 {[%clk 0:03:00.5]} 5. Nc3 {[%clk 0:02:46.3]}
5... a6 {[%clk 0:03:00.9]} 6. Be2 {[%clk 0:02:46.4]} 6... e5 {[%clk 0:03:00.6]}
7. Nb3 {[%clk 0:02:47]} 7... Be7 {[%clk 0:03:00.2]} 8. Be3 {[%clk 0:02:47.5]}
8... Be6 {[%clk 0:02:52.8]} 9. g4 {[%clk 0:02:47.4]} 9... d5 {[%clk 0:02:48.2]}
10. exd5 {[%clk 0:02:47.3]} 10... Nxd5 {[%clk 0:02:48.1]} 11. Nxd5 {[%clk
0:02:47.6]} 11... Qxd5 {[%clk 0:02:48.2]} 12. Bf3 {[%clk 0:02:46.7]} 12... Qxd1+
{[%clk 0:02:43.5]} 13. Rxd1 {[%clk 0:02:47.6]} 13... Nc6 {[%clk 0:02:40.4]} 14.
Nc5 {[%clk 0:02:45.8]} 14... Bxc5 {[%clk 0:02:39.4]} 15. Bxc5 {[%clk 0:02:45.8]}
15... Rd8 {[%clk 0:02:27.8]} 16. O-O {[%clk 0:02:44.8]} 16... f6 {[%clk
0:01:55.6]} 17. Bb6 {[%clk 0:02:37.2]} 17... Rxd1 {[%clk 0:01:47.9]} 18. Rxd1
{[%clk 0:02:38.1]} 18... Ke7 {[%clk 0:01:43.8]} 19. a3 {[%clk 0:02:33.5]} 19...
Kf7 {[%clk 0:01:23.5]} 20. b4 {[%clk 0:02:29.2]} 20... Re8 {[%clk 0:01:23.3]}
21. Rd6 {[%clk 0:02:27.5]} 21... Rc8 {[%clk 0:01:21.9]} 22. Kg2 {[%clk
0:02:22.8]} 22... g6 {[%clk 0:01:15.7]} 23. c4 {[%clk 0:02:22.5]} 23... f5
{[%clk 0:01:08.8]} 24. gxf5 {[%clk 0:02:22.4]} 24... gxf5 {[%clk 0:01:08.5]} 25.
Bd5 {[%clk 0:02:07.6]} 25... Bxd5+ {[%clk 0:00:59]} 26. cxd5 {[%clk 0:02:08.5]}
26... Nd4 {[%clk 0:00:51.6]} 27. Rd7+ {[%clk 0:02:06.4]} 27... Kf6 {[%clk
0:00:51.4]} 28. Rxb7 {[%clk 0:02:06.4]} 28... Ne2 {[%clk 0:00:36.8]} 29. Kf3
{[%clk 0:01:59.2]} 29... Nf4 {[%clk 0:00:34.3]} 30. d6 {[%clk 0:01:55.8]} 30...
Rc3+ {[%clk 0:00:30.4]} 31. Be3 {[%clk 0:01:55.5]} 31... Ke6 {[%clk 0:00:20.7]}
32. Rxh7 {[%clk 0:01:52]} 32... Nd5 {[%clk 0:00:17.6]} 33. d7 {[%clk 0:01:49]}
33... e4+ {[%clk 0:00:16.5]} 34. Ke2 {[%clk 0:01:48.5]} 1-0

[Event "Late-Titled-Tuesday-Blitz-October-10-2023"]
[Site "Chess.com"]
[Date "2023.10.10"]
[Round "5"]
[White "bettercallcafu"]
[Black "emiliochess"]
[Result "1/2-1/2"]
[WhiteElo "2643"]
[BlackElo "2341"]
[TimeControl "180+1"]
[EndTime "14:50:47 PDT"]
[Termination "Game drawn by repetition"]

1. d4 {[%clk 0:03:00.9]} 1... d5 {[%clk 0:03:00.2]} 2. Nc3 {[%clk 0:02:53.6]}
2... Bf5 {[%clk 0:02:59.1]} 3. Bf4 {[%clk 0:02:41.5]} 3... c6 {[%clk 0:02:59.2]}
4. e3 {[%clk 0:02:37.2]} 4... e6 {[%clk 0:02:59.4]} 5. f3 {[%clk 0:02:37.3]}
5... Bd6 {[%clk 0:02:58.9]} 6. Nge2 {[%clk 0:02:36.3]} 6... Ne7 {[%clk
0:02:51.8]} 7. Qd2 {[%clk 0:02:36.4]} 7... a5 {[%clk 0:02:51.3]} 8. g4 {[%clk
0:02:36.5]} 8... Bg6 {[%clk 0:02:51.3]} 9. h4 {[%clk 0:02:36.8]} 9... h5 {[%clk
0:02:51.4]} 10. g5 {[%clk 0:02:34.1]} 10... b5 {[%clk 0:02:47.4]} 11. Bxd6
{[%clk 0:02:33.4]} 11... Qxd6 {[%clk 0:02:45.2]} 12. Nf4 {[%clk 0:02:34]} 12...
Nd7 {[%clk 0:02:41.5]} 13. Bd3 {[%clk 0:02:33.4]} 13... Bxd3 {[%clk 0:02:41]}
14. Nxd3 {[%clk 0:02:31.7]} 14... Qg3+ {[%clk 0:02:37.4]} 15. Qf2 {[%clk
0:02:31.4]} 15... Qxf2+ {[%clk 0:02:37.9]} 16. Kxf2 {[%clk 0:02:31.6]} 16... g6
{[%clk 0:02:32.5]} 17. e4 {[%clk 0:02:27.1]} 17... Rb8 {[%clk 0:02:29.8]} 18.
Ke3 {[%clk 0:02:25.3]} 18... Nc8 {[%clk 0:02:30]} 19. b3 {[%clk 0:02:05.1]}
19... Nd6 {[%clk 0:02:30.2]} 20. a4 {[%clk 0:02:02.9]} 20... b4 {[%clk
0:02:30.1]} 21. Ne2 {[%clk 0:02:01.1]} 21... Ke7 {[%clk 0:02:28.9]} 22. Ng3
{[%clk 0:01:59]} 22... Rhc8 {[%clk 0:02:27.8]} 23. e5 {[%clk 0:01:58.7]} 23...
Nb7 {[%clk 0:02:28.1]} 24. Ne2 {[%clk 0:01:53.3]} 24... c5 {[%clk 0:02:28.4]}
25. dxc5 {[%clk 0:01:46.2]} 25... Nbxc5 {[%clk 0:02:29.3]} 26. Nxc5 {[%clk
0:01:46.4]} 26... Rxc5 {[%clk 0:02:29.4]} 27. Nd4 {[%clk 0:01:40]} 27... Nxe5
{[%clk 0:02:25.9]} 28. f4 {[%clk 0:01:37.7]} 28... Ng4+ {[%clk 0:02:19.8]} 29.
Ke2 {[%clk 0:01:30]} 29... Rc3 {[%clk 0:02:13.1]} 30. Rad1 {[%clk 0:01:21.1]}
30... Rbc8 {[%clk 0:01:54.8]} 31. Rd3 {[%clk 0:01:17.9]} 31... Rxc2+ {[%clk
0:01:43.5]} 32. Nxc2 {[%clk 0:01:15.1]} 32... Rxc2+ {[%clk 0:01:44.4]} 33. Rd2
{[%clk 0:01:11.7]} 33... Rc3 {[%clk 0:01:44.9]} 34. Rb1 {[%clk 0:01:05.5]} 34...
Kd6 {[%clk 0:01:34.9]} 35. Rd3 {[%clk 0:01:04.1]} 35... Rc2+ {[%clk 0:01:35.2]}
36. Rd2 {[%clk 0:01:03.5]} 36... Rc3 {[%clk 0:01:32]} 37. Rd3 {[%clk 0:01:02.2]}
37... Rc8 {[%clk 0:01:09.5]} 38. Rdd1 {[%clk 0:00:59.2]} 38... Rc2+ {[%clk
0:01:01.7]} 39. Rd2 {[%clk 0:00:57.1]} 39... Rc3 {[%clk 0:00:59.2]} 1/2-1/2

[Event "Late-Titled-Tuesday-Blitz-October-10-2023"]
[Site "Chess.com"]
[Date "2023.10.10"]
[Round "5"]
[White "mac0504"]
[Black "alexrustemov"]
[Result "1/2-1/2"]
[WhiteElo "2576"]
[BlackElo "2835"]
[TimeControl "180+1"]
[EndTime "14:50:51 PDT"]
[Termination "Game drawn by repetition"]

1. c4 {[%clk 0:02:59.6]} 1... c5 {[%clk 0:02:59.7]} 2. b3 {[%clk 0:02:56]} 2...
Nf6 {[%clk 0:02:58.7]} 3. Bb2 {[%clk 0:02:55.9]} 3... e6 {[%clk 0:02:58.9]} 4.
e3 {[%clk 0:02:51.6]} 4... Be7 {[%clk 0:02:58.6]} 5. g4 {[%clk 0:02:51.8]} 5...
h6 {[%clk 0:02:52]} 6. Bg2 {[%clk 0:02:48.1]} 6... d5 {[%clk 0:02:49.4]} 7. h4
{[%clk 0:02:48.2]} 7... Nc6 {[%clk 0:02:41.3]} 8. g5 {[%clk 0:02:47.3]} 8...
hxg5 {[%clk 0:02:37.3]} 9. hxg5 {[%clk 0:02:48.2]} 9... Rxh1 {[%clk 0:02:37.3]}
10. Bxh1 {[%clk 0:02:49.1]} 10... Ne4 {[%clk 0:02:37.6]} 11. g6 {[%clk
0:01:45.5]} 11... Bf6 {[%clk 0:01:54.4]} 12. gxf7+ {[%clk 0:00:31.4]} 12... Kxf7
{[%clk 0:01:55.3]} 13. Qh5+ {[%clk 0:00:28.6]} 13... Kg8 {[%clk 0:01:55.4]} 14.
Bxe4 {[%clk 0:00:28.5]} 14... Bxb2 {[%clk 0:01:49.4]} 15. cxd5 {[%clk
0:00:24.7]} 15... Ne7 {[%clk 0:01:39.2]} 16. Nf3 {[%clk 0:00:12.1]} 16... exd5
{[%clk 0:01:32.3]} 17. Ng5 {[%clk 0:00:11.9]} 17... dxe4 {[%clk 0:00:55.5]} 18.
Qf7+ {[%clk 0:00:11.9]} 18... Kh8 {[%clk 0:00:55.4]} 19. Qh5+ {[%clk 0:00:12.6]}
19... Kg8 {[%clk 0:00:55.9]} 20. Qf7+ {[%clk 0:00:13.4]} 20... Kh8 {[%clk
0:00:56.4]} 21. Qh5+ {[%clk 0:00:14.2]} 21... Kg8 {[%clk 0:00:55.6]} 1/2-1/2

[Event "Late-Titled-Tuesday-Blitz-October-10-2023"]
[Site "Chess.com"]
[Date "2023.10.10"]
[Round "5"]
[White "Grandmaster1369"]
[Black "FM_Kappeler"]
[Result "1-0"]
[WhiteElo "2769"]
[BlackElo "2332"]
[TimeControl "180+1"]
[EndTime "14:50:51 PDT"]
[Termination "Grandmaster1369 won on time"]

1. e4 {[%clk 0:02:59.9]} 1... c5 {[%clk 0:02:59]} 2. Nc3 {[%clk 0:03:00.3]} 2...
Nc6 {[%clk 0:02:58.1]} 3. f4 {[%clk 0:03:00.9]} 3... e6 {[%clk 0:02:57.2]} 4.
Nf3 {[%clk 0:03:01.4]} 4... a6 {[%clk 0:02:55.1]} 5. g3 {[%clk 0:02:58]} 5...
Nge7 {[%clk 0:02:48.3]} 6. Bg2 {[%clk 0:02:57.8]} 6... d5 {[%clk 0:02:41.9]} 7.
d3 {[%clk 0:02:58.2]} 7... g6 {[%clk 0:02:37.8]} 8. O-O {[%clk 0:02:51.6]} 8...
Bg7 {[%clk 0:02:37.6]} 9. Qe2 {[%clk 0:02:47.1]} 9... O-O {[%clk 0:02:37]} 10.
e5 {[%clk 0:02:46.1]} 10... b5 {[%clk 0:02:31]} 11. Qf2 {[%clk 0:02:42.1]} 11...
d4 {[%clk 0:02:22.1]} 12. Ne4 {[%clk 0:02:41.7]} 12... Bb7 {[%clk 0:02:21.8]}
13. Nxc5 {[%clk 0:02:40.5]} 13... Rb8 {[%clk 0:02:11.8]} 14. Nxb7 {[%clk
0:02:39.6]} 14... Rxb7 {[%clk 0:02:11.9]} 15. Nxd4 {[%clk 0:02:40.2]} 15... Rc7
{[%clk 0:01:56.2]} 16. Nxc6 {[%clk 0:02:28.3]} 16... Nxc6 {[%clk 0:01:55.2]} 17.
Be3 {[%clk 0:02:29]} 17... Nb4 {[%clk 0:01:53.4]} 18. Bb6 {[%clk 0:02:29.5]}
18... Rxc2 {[%clk 0:01:44.6]} 19. Bxd8 {[%clk 0:02:26.4]} 19... Rxf2 {[%clk
0:01:42.8]} 20. Rxf2 {[%clk 0:02:22.4]} 20... Rxd8 {[%clk 0:01:40.7]} 21. a3
{[%clk 0:02:22.8]} 21... Nd5 {[%clk 0:01:26.9]} 22. Bxd5 {[%clk 0:02:22.7]}
22... Rxd5 {[%clk 0:01:26.6]} 23. Rc1 {[%clk 0:02:23.3]} 23... Bf8 {[%clk
0:01:26]} 24. Rc8 {[%clk 0:02:22.7]} 24... Kg7 {[%clk 0:01:26.2]} 25. Rf3 {[%clk
0:02:13.9]} 25... g5 {[%clk 0:01:21.2]} 26. Kf2 {[%clk 0:02:11.6]} 26... g4
{[%clk 0:01:18.6]} 27. Re3 {[%clk 0:02:05.8]} 27... Bc5 {[%clk 0:01:18.2]} 28.
Ke2 {[%clk 0:02:05.3]} 28... Bxe3 {[%clk 0:01:06.1]} 29. Kxe3 {[%clk 0:02:06.2]}
29... a5 {[%clk 0:00:57]} 30. d4 {[%clk 0:02:04.5]} 30... Rd7 {[%clk 0:00:42.1]}
31. b3 {[%clk 0:02:03.1]} 31... a4 {[%clk 0:00:28.4]} 32. b4 {[%clk 0:02:02.2]}
32... h5 {[%clk 0:00:27.2]} 33. Ke4 {[%clk 0:02:00.4]} 33... Kg6 {[%clk
0:00:16.7]} 34. Rc5 {[%clk 0:02:00.7]} 34... Rb7 {[%clk 0:00:15.1]} 35. Rc6
{[%clk 0:02:01.1]} 35... Kg7 {[%clk 0:00:13.9]} 36. f5 {[%clk 0:02:00.5]} 36...
exf5+ {[%clk 0:00:12.6]} 37. Kxf5 {[%clk 0:02:01.4]} 37... Rd7 {[%clk
0:00:12.4]} 38. Ke4 {[%clk 0:02:01.9]} 38... Kh7 {[%clk 0:00:04.2]} 39. d5
{[%clk 0:02:01.7]} 39... Kg7 {[%clk 0:00:04]} 40. d6 {[%clk 0:02:00.9]} 40...
Kg6 {[%clk 0:00:02.5]} 41. Rc7 {[%clk 0:02:00.6]} 41... Rd8 {[%clk 0:00:01.9]}
42. Rc5 {[%clk 0:01:57.3]} 1-0

[Event "Late-Titled-Tuesday-Blitz-October-10-2023"]
[Site "Chess.com"]
[Date "2023.10.10"]
[Round "5"]
[White "Joshukid"]
[Black "Schwindle"]
[Result "1-0"]
[WhiteElo "2570"]
[BlackElo "2408"]
[TimeControl "180+1"]
[EndTime "14:50:56 PDT"]
[Termination "Joshukid won by resignation"]

1. c4 {[%clk 0:02:56.9]} 1... Nf6 {[%clk 0:03:00.3]} 2. Nf3 {[%clk 0:02:55.4]}
2... e6 {[%clk 0:03:00.7]} 3. g3 {[%clk 0:02:55.5]} 3... d5 {[%clk 0:02:54.5]}
4. Bg2 {[%clk 0:02:54.8]} 4... Be7 {[%clk 0:02:52.6]} 5. O-O {[%clk 0:02:55.3]}
5... O-O {[%clk 0:02:52.8]} 6. b3 {[%clk 0:02:55.7]} 6... c6 {[%clk 0:02:51.6]}
7. Bb2 {[%clk 0:02:55.6]} 7... b5 {[%clk 0:02:48.3]} 8. d4 {[%clk 0:02:49.1]}
8... a6 {[%clk 0:02:40.4]} 9. Nc3 {[%clk 0:02:48.1]} 9... Nbd7 {[%clk
0:02:35.4]} 10. Nd2 {[%clk 0:02:44.7]} 10... Rb8 {[%clk 0:02:32.1]} 11. Qc2
{[%clk 0:02:44.6]} 11... Bb7 {[%clk 0:02:06.6]} 12. e4 {[%clk 0:02:36.9]} 12...
c5 {[%clk 0:01:44.6]} 13. e5 {[%clk 0:02:11.1]} 13... Ne4 {[%clk 0:01:42.1]} 14.
Ncxe4 {[%clk 0:02:09.5]} 14... dxe4 {[%clk 0:01:41.7]} 15. cxb5 {[%clk 0:01:59]}
15... cxd4 {[%clk 0:01:36.3]} 16. Bxd4 {[%clk 0:01:54.4]} 16... Rc8 {[%clk
0:01:33.7]} 17. Qb2 {[%clk 0:01:49.6]} 17... Nc5 {[%clk 0:01:33.2]} 18. Bxc5
{[%clk 0:01:43]} 18... Bxc5 {[%clk 0:01:22.9]} 19. Rad1 {[%clk 0:01:27.8]} 19...
e3 {[%clk 0:01:06]} 20. Bxb7 {[%clk 0:01:27.1]} 20... e2 {[%clk 0:01:05.2]} 21.
Bf3 {[%clk 0:01:19.4]} 21... exf1=Q+ {[%clk 0:01:02.3]} 22. Nxf1 {[%clk
0:01:18.5]} 22... Qb6 {[%clk 0:00:58.4]} 23. bxa6 {[%clk 0:01:15.9]} 23... Qxa6
{[%clk 0:00:46.9]} 24. b4 {[%clk 0:01:16.5]} 24... Qb6 {[%clk 0:00:43.1]} 25. a3
{[%clk 0:01:13.9]} 25... Rcd8 {[%clk 0:00:40.5]} 26. Rxd8 {[%clk 0:01:00.3]}
26... Rxd8 {[%clk 0:00:38.4]} 27. Qc2 {[%clk 0:01:00.7]} 27... Bd4 {[%clk
0:00:36.1]} 28. Kg2 {[%clk 0:01:01.3]} 28... Bxe5 {[%clk 0:00:36.1]} 29. Ne3
{[%clk 0:01:00.6]} 29... Qd4 {[%clk 0:00:31.1]} 30. b5 {[%clk 0:00:58.5]} 30...
Bc7 {[%clk 0:00:27.6]} 31. Qxc7 {[%clk 0:00:58]} 1-0